bitfinex/quotes_SOLUSD_20240607
["timestamp","ask_amount","ask_price","bid_price","bid_amount"]
[1717785353941,140.0,161.04,160.91,3.01804366]
[1717785353942,120.0,161.02,160.91,3.01804366]
[1717785354275,20.0,161.01,160.91,3.01804366]
[1717785354644,120.0,161.06,160.91,3.01804366]
[1717785354851,0.8198837,161.09,160.91,3.01804366]
[1717785355358,120.0,161.08,160.91,3.01804366]
[1717785355563,0.8198837,161.09,160.91,3.01804366]
[1717785355767,120.0,161.07,160.91,3.01804366]
[1717785356070,120.0,161.08,160.91,3.01804366]
[1717785356241,0.8198837,161.09,160.91,3.01804366]
[1717785357472,0.8198837,161.09,160.92,6.6224]
[1717785358358,0.8198837,161.09,160.93,20.0]
[1717785359073,0.8198837,161.09,160.92,6.6224]
[1717785359269,0.8198837,161.09,160.93,20.0]
[1717785359656,0.8198837,161.09,160.92,6.6224]
[1717785360571,0.8198837,161.09,160.93,20.0]
[1717785360754,0.8198837,161.09,160.92,6.6224]
[1717785360951,0.8198837,161.09,160.63,1.39679743]
[1717785360952,120.0,161.2,160.97,6.1775]
[1717785361155,120.0,161.19,160.97,6.1775]
[1717785361367,16.8198837,161.25,160.97,6.1775]
[1717785361368,22.09120472,161.25,160.97,6.1775]
[1717785361572,120.0,161.2,160.97,6.1775]
[1717785361880,120.0,161.14,160.97,6.1775]
[1717785362275,120.0,161.16,160.97,6.1775]
[1717785362578,10.0,161.2,160.97,6.1775]
[1717785362894,120.0,161.15,160.97,6.1775]
[1717785363177,55.37,161.19,160.97,6.1775]
[1717785363178,20.0,161.14,160.97,6.1775]
[1717785363390,120.0,161.1,160.97,6.1775]
[1717785363574,20.0,161.09,160.97,6.1775]
[1717785363755,120.0,161.06,160.97,6.1775]
[1717785364071,120.0,161.1,160.97,6.1775]
[1717785364263,20.0,161.09,160.97,6.1775]
[1717785364469,140.0,161.09,160.97,6.1775]
[1717785364671,20.0,161.09,160.97,6.1775]
[1717785364865,120.0,161.08,160.97,6.1775]
[1717785365046,20.0,161.11,160.97,6.1775]
[1717785365252,120.0,161.04,160.97,6.1775]
[1717785365463,20.0,161.11,160.97,6.1775]
[1717785365464,20.0,161.03,160.97,6.1775]
[1717785365973,20.0,161.03,160.95,6.6604]
[1717785366275,120.0,161.04,160.93,16.4373]
[1717785366466,120.0,161.02,160.93,16.4373]
[1717785366651,20.0,161.01,160.93,16.4373]
[1717785366849,20.0,161.01,160.88,6.6604]
[1717785367061,120.0,160.99,160.88,6.6604]
[1717785367376,20.0,160.98,160.88,6.6604]
[1717785367871,20.0,161.0,160.88,6.6604]
[1717785368486,120.0,160.94,160.86,16.4373]
[1717785368669,120.0,160.92,160.82,6.4353]
[1717785368852,20.0,160.91,160.82,6.4353]
[1717785369282,120.0,160.88,160.79,16.3187]
[1717785369489,120.0,160.83,160.71,22.1784]
[1717785369777,20.0,160.82,160.71,22.1784]
[1717785370489,7.10193962,160.81,160.71,22.1784]
[1717785370780,20.0,160.84,160.71,22.1784]
[1717785370984,26.10799343,160.88,160.71,22.1784]
[1717785371282,120.0,160.85,160.71,22.1784]
[1717785371585,26.86199343,160.84,160.71,22.1784]
[1717785371763,20.0,160.83,160.71,22.1784]
[1717785372163,6.86199343,160.87,160.71,22.1784]
[1717785372377,120.0,160.91,160.71,22.1784]
[1717785372576,120.0,160.94,160.71,22.1784]
[1717785372993,6.86199343,160.99,160.71,22.1784]
[1717785372994,120.0,160.98,160.71,22.1784]
[1717785373178,120.0,160.98,160.72,6.2091]
[1717785373364,4.87818179,161.0,160.74,6.2091]
[1717785373574,120.0,160.99,160.76,6.2091]
[1717785373785,120.0,160.95,160.76,6.2091]
[1717785374016,120.0,161.0,160.76,6.2091]
[1717785374286,120.0,161.03,160.77,15.0372]
[1717785374473,120.0,160.98,160.78,6.4594]
[1717785374659,120.0,160.95,160.78,6.4594]
[1717785374863,120.0,160.96,160.78,6.4594]
[1717785375078,120.0,160.94,160.78,6.4594]
[1717785375390,120.0,160.91,160.78,6.4594]
[1717785375776,120.0,160.87,160.78,6.4594]
[1717785375965,120.0,160.83,160.72,6.0548]
[1717785376178,20.0,160.9,160.72,6.0548]
[1717785376179,387.5,160.89,160.72,6.0548]
[1717785376389,20.0,160.82,160.72,6.0548]
[1717785376765,387.5,160.89,160.72,6.0548]
[1717785376993,120.0,160.87,160.72,6.0548]
[1717785377172,20.0,160.88,160.72,6.0548]
[1717785377173,120.0,160.85,160.72,6.0548]
[1717785377375,120.0,160.83,160.72,6.0548]
[1717785377582,120.0,160.81,160.72,6.0548]
[1717785377794,27.54016009,160.8,160.72,6.0548]
[1717785378291,20.0,160.8,160.72,6.0548]
[1717785378599,23.87689013,160.8,160.72,6.0548]
[1717785378808,7.54016009,160.79,160.72,6.0548]
[1717785378975,20.0,160.78,160.72,6.0548]
[1717785379181,23.66326996,160.78,160.72,6.0548]
[1717785379378,3.87689013,160.77,160.72,6.0548]
[1717785379778,20.0,160.78,160.72,6.0548]
[1717785379987,7.54016009,160.77,160.7,6.3136]
[1717785380302,120.0,160.81,160.7,6.3136]
[1717785380599,7.85938232,160.8,160.7,6.3136]
[1717785380801,120.0,160.76,160.69,0.8198837]
[1717785380978,15.09559506,160.9,160.69,0.8198837]
[1717785380979,120.0,160.73,160.69,0.8198837]
[1717785381178,28.43788232,160.72,160.69,0.8198837]
[1717785381406,120.0,160.71,160.69,0.8198837]
[1717785381575,28.43788232,160.7,160.69,0.8198837]
[1717785381981,120.0,160.69,160.6,15.3415]
[1717785382208,25.36612098,160.68,160.55,6.6431]
[1717785382381,120.0,160.66,160.55,6.6431]
[1717785382582,120.0,160.66,160.49,6.6431]
[1717785382898,120.0,160.64,160.49,6.6431]
[1717785383097,20.0,160.65,160.49,6.6431]
[1717785383297,8.43733767,160.63,160.5,0.87147769]
[1717785383496,8.43733767,160.67,160.5,0.87147769]
[1717785384081,8.43733767,160.67,160.5,20.87147769]
[1717785384296,8.43733767,160.67,160.5,20.0]
[1717785384880,8.43733767,160.67,160.49,6.6431]
[1717785385098,8.43733767,160.67,160.5,16.2869]
[1717785385329,120.0,160.66,160.5,16.2869]
[1717785385512,120.0,160.7,160.5,16.2869]
[1717785385714,5.36612098,160.65,160.5,16.2869]
[1717785385911,25.36612098,160.69,160.5,16.2869]
[1717785386115,145.36612098,160.69,160.5,16.2869]
[1717785386309,125.36612098,160.68,160.5,16.2869]
[1717785386514,120.0,160.66,160.5,16.2869]
[1717785386823,25.36612098,160.65,160.5,16.2869]
[1717785387208,20.0,160.65,160.5,16.2869]
[1717785387406,120.0,160.66,160.5,16.2869]
[1717785387725,20.0,160.65,160.5,16.2869]
[1717785388418,20.0,160.66,160.5,16.2869]
[1717785388604,24.95216854,160.7,160.5,16.2869]
[1717785388807,26.1,160.72,160.5,16.2869]
[1717785389009,120.0,160.67,160.5,16.2869]
[1717785389308,120.0,160.66,160.5,16.2869]
[1717785389512,120.0,160.64,160.5,16.2869]
[1717785389710,120.0,160.62,160.5,16.2869]
[1717785390119,26.1,160.67,160.49,6.6431]
[1717785390120,120.0,160.58,160.49,6.6431]
[1717785390303,26.1,160.61,160.49,6.6431]
[1717785390304,20.0,160.57,160.49,6.6431]
[1717785390503,20.0,160.6,160.49,6.6431]
[1717785390703,140.0,160.61,160.49,6.6431]
[1717785390904,20.0,160.61,160.49,6.6431]
[1717785391129,120.0,160.58,160.49,6.6431]
[1717785391304,20.0,160.57,160.49,6.6431]
[1717785391509,120.0,160.56,160.49,6.6431]
[1717785391705,20.0,160.55,160.49,6.6431]
[1717785391907,140.0,160.55,160.49,6.6431]
[1717785392127,140.0,160.55,160.39,6.4026]
[1717785392330,166.1,160.55,160.39,6.4026]
[1717785392534,120.0,160.51,160.39,6.4026]
[1717785392720,20.0,160.5,160.39,6.4026]
[1717785392918,4.61167021,160.5,160.39,6.4026]
[1717785393225,20.0,160.54,160.39,6.4026]
[1717785393933,31.00571683,160.64,160.39,6.4026]
[1717785394141,120.0,160.62,160.4,20.0]
[1717785394357,120.0,160.6,160.4,20.0]
[1717785394650,120.0,160.6,160.39,6.4026]
[1717785394811,120.0,160.56,160.39,6.4026]
[1717785395010,120.0,160.52,160.39,6.4026]
[1717785395210,120.0,160.5,160.39,6.4026]
[1717785395435,120.0,160.54,160.39,6.4026]
[1717785395756,8.33513208,160.75,160.53,6.273]
[1717785395913,31.5656,160.99,160.53,6.273]
[1717785395914,120.0,160.71,160.53,6.273]
[1717785396411,120.0,160.71,160.52,16.1273]
[1717785396412,120.0,160.63,160.46,6.273]
[1717785396724,26.1,160.63,160.46,6.273]
[1717785397515,120.0,160.71,160.46,6.273]
[1717785398017,26.1,160.68,160.46,6.273]
[1717785398349,146.1,160.68,160.46,6.273]
[1717785398711,26.1,160.68,160.46,6.273]
[1717785399110,120.0,160.66,160.46,6.273]
[1717785399428,120.0,160.64,160.46,6.273]
[1717785399645,120.0,160.64,160.39,26.1]
[1717785399646,120.0,160.56,160.4,6.5774]
[1717785399818,120.0,160.58,160.4,6.5774]
[1717785400016,120.0,160.55,160.4,6.5774]
[1717785400317,26.1,160.51,160.4,6.5774]
[1717785400525,20.0,160.5,160.4,6.5774]
[1717785401228,120.0,160.6,160.4,6.5774]
[1717785401444,26.1,160.56,160.4,6.5774]
[1717785402026,10.0,160.63,160.4,6.5774]
[1717785402328,413.6,160.64,160.4,6.5774]
[1717785402329,26.1,160.64,160.4,6.5774]
[1717785402915,120.0,160.67,160.42,26.1]
[1717785403648,26.1,160.63,160.4,6.5774]
[1717785403827,26.1,160.59,160.4,6.5774]
[1717785404337,26.1,160.59,160.41,82.0]
[1717785404516,20.0,160.58,160.41,82.0]
[1717785404718,120.0,160.65,160.4,6.5774]
[1717785404921,120.0,160.64,160.4,6.5774]
[1717785405218,42.4332,160.72,160.4,6.5774]
[1717785405219,120.0,160.66,160.4,6.5774]
[1717785406018,120.0,160.69,160.42,32.4968]
[1717785406221,26.1,160.69,160.42,32.4968]
[1717785406551,26.1,160.69,160.43,120.0]
[1717785406752,120.0,160.68,160.42,32.4968]
[1717785406931,120.0,160.66,160.42,6.3968]
[1717785407135,120.0,160.68,160.42,6.3968]
[1717785407836,120.0,160.68,160.49,82.0]
[1717785408233,120.0,160.71,160.43,6.1287]
[1717785408426,26.1,160.72,160.43,6.1287]
[1717785408621,120.0,160.67,160.44,26.1]
[1717785408827,26.1,160.66,160.43,6.1287]
[1717785409343,26.1,160.6,160.43,6.1287]
[1717785409836,20.0,160.59,160.43,6.1287]
[1717785410222,120.0,160.56,160.41,15.1168]
[1717785410423,26.1,160.52,160.41,15.1168]
[1717785410625,20.0,160.51,160.41,15.1168]
[1717785410826,26.1,160.6,160.41,15.1168]
[1717785411026,20.0,160.59,160.41,15.1168]
[1717785411647,26.1,160.6,160.41,15.1168]
[1717785411946,20.0,160.59,160.41,15.1168]
[1717785412633,26.1,160.65,160.41,15.1168]
[1717785413152,120.0,160.64,160.41,15.1168]
[1717785413327,120.0,160.62,160.41,15.1168]
[1717785414449,120.0,160.58,160.38,7.0434837]
[1717785414633,20.0,160.57,160.38,7.0434837]
[1717785415355,20.0,160.59,160.38,7.0434837]
[1717785416841,140.0,160.59,160.38,7.0434837]
[1717785417040,26.1,160.56,160.38,7.0434837]
[1717785417247,20.0,160.55,160.38,7.0434837]
[1717785417846,26.1,160.56,160.39,15.489]
[1717785418035,131.92259381,160.65,160.39,15.489]
[1717785418036,120.0,160.65,160.39,15.489]
[1717785418241,26.1,160.57,160.39,15.489]
[1717785419066,26.1,160.64,160.39,15.489]
[1717785419067,120.0,160.62,160.39,15.489]
[1717785419257,20.0,160.61,160.39,15.489]
[1717785420236,20.0,160.61,160.38,7.0434837]
[1717785420237,31.05262853,160.86,160.38,0.8198837]
[1717785420569,5.80552577,160.93,160.64,26.1]
[1717785420776,120.0,160.88,160.64,26.1]
[1717785420936,0.8198837,160.93,160.62,16.0979]
[1717785420937,120.0,160.85,160.62,16.0979]
[1717785421137,120.0,160.76,160.61,6.0798]
[1717785421441,120.0,160.74,160.61,6.0798]
[1717785421638,120.0,160.76,160.61,6.0798]
[1717785421938,120.0,160.74,160.61,6.0798]
[1717785422135,10.0,160.79,160.54,16.0979]
[1717785422136,120.0,160.68,160.54,16.0979]
[1717785422362,26.1,160.69,160.54,16.0979]
[1717785423554,120.0,160.74,160.54,16.0979]
[1717785423755,10.0,160.79,160.54,16.0979]
[1717785423756,26.1,160.75,160.54,16.0979]
[1717785424073,147.04199378,160.83,160.55,82.0]
[1717785424250,26.1,160.8,160.55,108.1]
[1717785424448,26.1,160.8,160.55,26.1]
[1717785424658,26.1,160.8,160.56,20.0]
[1717785425043,130.0,160.86,160.56,20.0]
[1717785425662,130.0,160.86,160.57,120.0]
[1717785425870,130.0,160.86,160.58,20.0]
[1717785426073,130.0,160.86,160.59,32.5701]
[1717785426592,26.1,160.88,160.64,126.4701]
[1717785426868,0.8198837,160.93,160.65,20.0]
[1717785427467,26.1,160.88,160.7,82.0]
[1717785427785,26.1,160.88,160.64,6.4701]
[1717785427786,146.1,160.88,160.64,6.4701]
[1717785428284,120.0,160.86,160.64,6.4701]
[1717785428567,120.0,160.84,160.64,6.4701]
[1717785428778,120.0,160.82,160.64,6.4701]
[1717785428977,26.1,160.79,160.64,6.4701]
[1717785429145,20.0,160.78,160.64,6.4701]
[1717785429345,26.1,160.79,160.65,1.13587492]
[1717785429566,26.1,160.84,160.64,6.4701]
[1717785429851,26.1,160.96,160.67,32.2718]
[1717785430048,26.1,160.96,160.67,6.1718]
[1717785430049,26.1,160.91,160.67,6.1718]
[1717785430849,120.0,160.91,160.67,6.1718]
[1717785431070,26.1,160.96,160.67,6.1718]
[1717785431071,26.9198837,160.93,160.67,6.1718]
[1717785431271,26.9198837,160.93,160.68,46.1]
[1717785431586,26.9198837,160.93,160.67,6.1718]
[1717785431780,120.8198837,160.93,160.67,6.1718]
[1717785431976,120.0,160.89,160.67,6.1718]
[1717785432175,120.0,160.87,160.67,6.1718]
[1717785432377,26.1,160.84,160.67,6.1718]
[1717785432873,20.0,160.83,160.67,6.1718]
[1717785433079,26.1,160.84,160.67,6.1718]
[1717785433279,20.0,160.83,160.67,6.1718]
[1717785433651,20.0,160.83,160.68,82.0]
[1717785433856,20.0,160.87,160.68,82.0]
[1717785434064,387.5,160.92,160.68,82.0]
[1717785434065,0.8198837,160.93,160.68,82.0]
[1717785434255,0.8198837,160.93,160.67,6.1718]
[1717785434256,26.1,160.91,160.67,6.1718]
[1717785434458,26.1,160.91,160.68,20.0]
[1717785434687,26.1,160.87,160.67,6.1718]
[1717785435259,20.0,160.86,160.67,6.1718]
[1717785435675,20.0,160.86,160.68,0.7899225]
[1717785435857,20.0,160.86,160.67,6.1718]
[1717785436053,20.0,160.86,160.68,0.78962753]
[1717785436378,26.1,160.87,160.68,0.78962753]
[1717785437086,26.1,160.91,160.68,0.78962753]
[1717785437288,387.5,160.92,160.75,82.0]
[1717785437454,0.8198837,160.93,160.76,6.3995]
[1717785438771,0.8198837,160.93,160.77,15.6579]
[1717785441092,120.8198837,160.93,160.77,15.6579]
[1717785441271,0.8198837,160.93,160.77,15.6579]
[1717785441624,0.8198837,160.93,160.77,14.9419]
[1717785442768,120.0,160.92,160.77,14.9419]
[1717785442972,20.0,160.91,160.77,14.9419]
[1717785443181,0.8198837,160.93,160.77,14.9419]
[1717785444684,120.8198837,160.93,160.77,14.9419]
[1717785445192,0.8198837,160.93,160.77,14.9419]
[1717785445776,120.0,160.92,160.77,14.9419]
[1717785445974,0.8198837,160.93,160.77,14.9419]
[1717785446570,120.8198837,160.93,160.77,14.9419]
[1717785446784,0.8198837,160.93,160.77,14.9419]
[1717785447491,120.8198837,160.93,160.77,14.9419]
[1717785447679,120.0,160.91,160.77,14.9419]
[1717785448078,120.8198837,160.93,160.77,14.9419]
[1717785448287,0.8198837,160.93,160.77,14.9419]
[1717785448692,120.8198837,160.93,160.77,14.9419]
[1717785448902,20.0,160.92,160.77,14.9419]
[1717785449129,0.8198837,160.93,160.77,14.9419]
[1717785449477,120.8198837,160.93,160.77,14.9419]
[1717785449700,0.8198837,160.93,160.77,14.9419]
[1717785450076,120.8198837,160.93,160.77,14.9419]
[1717785450276,120.0,160.91,160.77,14.9419]
[1717785450576,20.0,160.9,160.77,14.9419]
[1717785450789,20.0,160.92,160.77,14.9419]
[1717785450975,0.8198837,160.93,160.77,14.9419]
[1717785451300,120.8198837,160.93,160.77,14.9419]
[1717785451479,120.0,160.91,160.77,14.9419]
[1717785451677,0.8198837,160.93,160.77,14.9419]
[1717785451877,120.8198837,160.93,160.77,14.9419]
[1717785452278,0.8198837,160.93,160.77,14.9419]
[1717785452487,120.0,160.91,160.77,14.9419]
[1717785452795,26.1,160.87,160.77,14.9419]
[1717785453003,20.0,160.86,160.77,14.9419]
[1717785454215,120.0,160.84,160.7,22.5511]
[1717785454417,20.0,160.83,160.7,22.5511]
[1717785454715,26.1,160.8,160.7,6.0892]
[1717785454885,20.0,160.79,160.7,6.0892]
[1717785455286,20.0,160.79,160.64,6.0892]
[1717785455506,140.0,160.79,160.64,6.0892]
[1717785455716,20.0,160.79,160.64,6.0892]
[1717785456516,26.1,160.76,160.64,6.0892]
[1717785456814,20.0,160.75,160.64,6.0892]
[1717785457529,140.0,160.75,160.64,6.0892]
[1717785457811,20.0,160.75,160.58,6.485]
[1717785457995,26.1,160.73,160.58,6.485]
[1717785458193,20.0,160.72,160.58,6.485]
[1717785459284,26.1,160.77,160.58,6.485]
[1717785459685,6.5028,160.81,160.58,6.485]
[1717785459913,387.5,160.83,160.58,6.485]
[1717785460107,120.0,160.86,160.58,6.485]
[1717785460434,26.1,160.85,160.59,20.0]
[1717785460601,146.1,160.85,160.59,20.0]
[1717785460924,26.1,160.85,160.59,20.0]
[1717785461122,26.1,160.85,160.59,57.44]
[1717785461343,11.32145783,160.87,160.59,57.44]
[1717785461530,120.0,160.84,160.59,20.0]
[1717785461831,120.0,160.83,160.59,20.0]
[1717785462199,120.0,160.85,160.59,20.0]
[1717785462400,120.0,160.83,160.59,20.0]
[1717785462604,120.0,160.83,160.58,6.485]
[1717785462605,26.1,160.81,160.58,6.485]
[1717785462823,26.1,160.81,160.6,6.283]
[1717785463033,26.1,160.91,160.64,6.283]
[1717785463213,26.1,160.91,160.72,82.0]
[1717785463420,26.1,160.87,160.72,82.0]
[1717785463813,26.1,160.87,160.64,6.283]
[1717785464537,26.1,160.87,160.64,43.723]
[1717785464723,5.90120452,160.93,160.64,6.283]
[1717785464904,26.1,160.91,160.64,6.283]
[1717785465110,26.1,160.91,160.67,120.0]
[1717785465321,26.1,160.91,160.69,59.6015]
[1717785465522,26.1,160.91,160.7,20.0]
[1717785465722,0.8198837,160.93,160.7,57.44]
[1717785466810,0.8198837,160.93,160.78,82.0]
[1717785467011,0.8198837,160.93,160.79,6.4305]
[1717785467212,0.8198837,160.93,160.8,16.4378]
[1717785470319,0.8198837,160.93,160.8,98.4378]
[1717785470922,120.8198837,160.93,160.75,59.44925188]
[1717785471428,26.1,160.86,160.75,6.5407]
[1717785471830,20.0,160.85,160.75,6.5407]
[1717785472518,0.8198837,160.93,160.75,6.5407]
[1717785474248,120.0,160.92,160.75,6.5407]
[1717785474421,26.1,160.86,160.75,6.5407]
[1717785474622,20.0,160.85,160.75,6.5407]
[1717785475026,26.1,160.82,160.72,16.2918]
[1717785475216,20.0,160.81,160.72,16.2918]
[1717785475823,20.0,160.85,160.69,6.6306]
[1717785477856,0.8198837,160.93,160.69,6.6306]
[1717785478127,7.4769074,160.92,160.7,20.0]
[1717785478456,0.8198837,160.93,160.69,6.6306]
[1717785479159,0.8198837,160.93,160.7,57.44]
[1717785479340,0.8198837,160.93,160.71,15.7787]
[1717785479527,0.8198837,160.93,160.72,20.0]
[1717785480850,0.8198837,160.93,160.78,82.0]
[1717785481653,0.8198837,160.93,160.74,26.1]
[1717785481849,0.8198837,160.93,160.75,20.0]
[1717785482425,0.8198837,160.93,160.74,20.0]
[1717785482946,0.8198837,160.93,160.73,6.257]
[1717785483160,26.1,160.9,160.73,6.257]
[1717785483652,0.8198837,160.93,160.73,6.257]
[1717785484237,0.8198837,160.93,160.74,20.0]
[1717785484419,0.8198837,160.93,160.78,82.0]
[1717785485136,0.8198837,160.93,160.75,37.44]
[1717785485444,0.8198837,160.93,160.79,20.0]
[1717785485641,0.8198837,160.93,160.8,180.0953]
[1717785485942,0.8198837,160.93,160.84,6.1423]
[1717785486259,54.60582906,161.12,160.84,6.1423]
[1717785486260,17.93317944,161.11,160.86,37.44]
[1717785486462,17.93317944,161.11,160.87,110.3238867]
[1717785486624,17.93317944,161.11,160.89,37.44]
[1717785486828,32.189,161.12,160.9,20.0]
[1717785487644,32.189,161.12,160.89,57.44]
[1717785487839,32.189,161.12,160.89,20.0]
[1717785488146,32.189,161.12,160.92,82.0]
[1717785489157,32.189,161.12,160.89,20.0]
[1717785489367,120.0,161.11,160.88,16.0814]
[1717785489654,32.189,161.12,160.88,16.0814]
[1717785490046,26.1,161.02,160.87,52.8838867]
[1717785490239,20.0,161.01,160.87,52.8838867]
[1717785490758,26.1,161.0,160.87,52.8838867]
[1717785491059,26.1,161.0,160.81,15.1106]
[1717785491060,146.2209,160.99,160.81,15.1106]
[1717785491358,26.2209,160.99,160.81,15.1106]
[1717785491532,120.0,160.98,160.79,52.91019873]
[1717785491733,120.0,160.98,160.74,15.8112]
[1717785491734,26.1,160.91,160.74,15.8112]
[1717785492151,20.0,160.9,160.74,97.8112]
[1717785492338,20.0,160.9,160.74,15.8112]
[1717785492855,20.0,160.9,160.73,52.92994994]
[1717785493265,41.5056,160.87,160.65,72.95630784]
[1717785493559,15.4056,160.87,160.65,72.95630784]
[1717785493748,20.0,160.86,160.65,72.95630784]
[1717785494130,26.1,160.82,160.65,72.95630784]
[1717785494331,20.0,160.81,160.65,72.95630784]
[1717785494561,20.0,160.81,160.65,20.0]
[1717785495368,20.0,160.82,160.65,20.0]
[1717785495660,20.0,160.83,160.65,20.0]
[1717785495865,20.0,160.86,160.66,0.35425405]
[1717785496070,26.1,160.85,160.66,0.35534875]
[1717785496271,20.0,160.84,160.65,20.0]
[1717785496483,26.1,160.81,160.65,20.0]
[1717785496763,26.1,160.77,160.65,20.0]
[1717785496956,20.0,160.76,160.65,20.0]
[1717785497459,26.1,160.83,160.65,20.0]
[1717785497663,41.5056,160.87,160.65,20.0]
[1717785498048,13.20695776,160.91,160.65,20.0]
[1717785498049,6.4546,160.91,160.66,16.3126]
[1717785498259,6.4546,160.91,160.67,20.0]
[1717785499772,26.1,160.87,160.66,22.8241]
[1717785500155,32.5546,160.91,160.66,22.8241]
[1717785500353,26.1,160.87,160.66,22.8241]
[1717785500556,6.4546,160.91,160.66,22.8241]
[1717785500756,126.4546,160.91,160.66,22.8241]
[1717785500955,6.4546,160.91,160.66,22.8241]
[1717785501266,6.4546,160.91,160.67,20.0]
[1717785501474,26.1,160.92,160.67,140.0]
[1717785501651,26.1,160.96,160.71,120.0]
[1717785501974,26.1,160.96,160.72,20.0]
[1717785502469,26.1,160.96,160.68,20.0]
[1717785502644,26.1,160.92,160.67,20.0]
[1717785502970,26.1,160.92,160.69,202.0]
[1717785503167,26.1,160.96,160.71,37.44]
[1717785503361,26.1,160.96,160.72,0.64881776]
[1717785503564,26.1,160.96,160.72,20.64881776]
[1717785503770,26.1,160.95,160.72,20.64881776]
[1717785503978,26.1,160.91,160.72,20.0]
[1717785504271,26.1,160.91,160.68,0.64881776]
[1717785504772,26.1,160.95,160.68,0.64881776]
[1717785504773,26.1,160.87,160.68,0.64881776]
[1717785505072,20.0,160.86,160.68,0.64881776]
[1717785506459,20.0,160.86,160.66,29.0471]
[1717785506666,20.0,160.86,160.66,22.8241]
[1717785506848,26.1,160.83,160.66,22.8241]
[1717785507077,26.1,160.83,160.66,6.5115]
[1717785507265,20.0,160.82,160.65,20.0]
[1717785507577,140.0,160.82,160.65,20.0]
[1717785507761,20.0,160.82,160.65,20.0]
[1717785507965,120.0,160.81,160.65,20.0]
[1717785508169,146.1,160.79,160.65,20.0]
[1717785508369,20.0,160.78,160.65,20.0]
[1717785508883,26.1,160.74,160.65,20.0]
[1717785509191,20.0,160.73,160.65,20.0]
[1717785511079,32.85235776,160.8,160.65,20.0]
[1717785511280,26.1,160.81,160.65,20.0]
[1717785511670,146.1,160.81,160.65,20.0]
[1717785511979,26.1,160.77,160.65,20.0]
[1717785513473,120.0,160.83,160.65,20.0]
[1717785513676,120.0,160.78,160.65,20.0]
[1717785513857,26.1,160.79,160.65,20.0]
[1717785513858,15.038,160.75,160.65,20.0]
[1717785514257,6.223,160.92,160.65,20.0]
[1717785514476,120.0,160.82,160.65,20.0]
[1717785514686,120.0,160.79,160.65,20.0]
[1717785514856,20.0,160.78,160.65,20.0]
[1717785515053,120.0,160.79,160.65,20.0]
[1717785515257,20.0,160.78,160.65,20.0]
[1717785515781,4.70427996,160.89,160.65,20.0]
[1717785515782,20.0,160.79,160.65,20.0]
[1717785515978,140.0,160.82,160.65,20.0]
[1717785516181,6.75235776,160.8,160.65,20.0]
[1717785516710,20.0,160.79,160.65,20.0]
[1717785517385,22.9219,160.79,160.65,20.0]